[Event "*** Titled Tuesday 3|2 Blitz"]
[Site "Chess.com"]
[Date "2016.07.05"]
[Round "1"]
[White "AlexanderL"]
[Black "ftorodent"]
[Result "1/2-1/2"]
[WhiteElo "2562"]
[BlackElo "2303"]
[TimeControl "180+2"]
[EndTime "11:11:08 PDT"]
[Termination "Game drawn by stalemate"]

1. d4 {[%clk 0:02:37.1]} 1... d5 {[%clk 0:03:00.2]} 2. c4 {[%clk 0:02:37.2]}
2... e6 {[%clk 0:03:01.2]} 3. Nf3 {[%clk 0:02:33.8]} 3... Nf6 {[%clk 0:03:01.2]}
4. g3 {[%clk 0:02:34.7]} 4... Be7 {[%clk 0:03:02.3]} 5. Bg2 {[%clk 0:02:35]}
5... O-O {[%clk 0:03:03.9]} 6. O-O {[%clk 0:02:35.9]} 6... dxc4 {[%clk 0:03:05]}
7. Ne5 {[%clk 0:02:36.7]} 7... Nc6 {[%clk 0:03:05.2]} 8. Nxc6 {[%clk 0:02:37.8]}
8... bxc6 {[%clk 0:03:06.3]} 9. Na3 {[%clk 0:02:38.9]} 9... Bxa3 {[%clk
0:02:53.1]} 10. bxa3 {[%clk 0:02:40.8]} 10... Rb8 {[%clk 0:02:54.4]} 11. Qa4
{[%clk 0:02:40.7]} 11... Rb6 {[%clk 0:02:51.5]} 12. Qxc4 {[%clk 0:02:41.1]}
12... Ba6 {[%clk 0:02:50.4]} 13. Qc2 {[%clk 0:02:41.8]} 13... Qd7 {[%clk
0:02:12.8]} 14. Rd1 {[%clk 0:02:39.9]} 14... Rfb8 {[%clk 0:02:11.4]} 15. e4
{[%clk 0:02:38]} 15... Qe7 {[%clk 0:01:36.8]} 16. f3 {[%clk 0:01:32.5]} 16... h6
{[%clk 0:01:37.5]} 17. Qc3 {[%clk 0:01:28.6]} 17... Qe8 {[%clk 0:01:16]} 18. Be3
{[%clk 0:01:26.9]} 18... Rb2 {[%clk 0:01:16.8]} 19. Rd2 {[%clk 0:01:16.8]} 19...
Rb1+ {[%clk 0:01:07.2]} 20. Rxb1 {[%clk 0:01:17]} 20... Rxb1+ {[%clk 0:01:08]}
21. Kf2 {[%clk 0:01:18.2]} 21... c5 {[%clk 0:00:58]} 22. Qxc5 {[%clk 0:01:13.6]}
22... Qa4 {[%clk 0:00:55]} 23. g4 {[%clk 0:01:11.7]} 23... Rd1 {[%clk
0:00:36.2]} 24. Rxd1 {[%clk 0:01:02]} 24... Qxd1 {[%clk 0:00:37]} 25. Kg3 {[%clk
0:00:59.4]} 25... Bf1 {[%clk 0:00:26.7]} 26. Qc1 {[%clk 0:00:55.7]} 26... Qxc1
{[%clk 0:00:25.8]} 27. Bxc1 {[%clk 0:00:56.3]} 27... Bxg2 {[%clk 0:00:25.4]} 28.
Kxg2 {[%clk 0:00:58.2]} 28... c6 {[%clk 0:00:26]} 29. Kf2 {[%clk 0:00:58.1]}
29... Kf8 {[%clk 0:00:26.8]} 30. Ke2 {[%clk 0:00:58.8]} 30... Ke7 {[%clk
0:00:27.6]} 31. Kd3 {[%clk 0:01:00]} 31... Nd7 {[%clk 0:00:24.5]} 32. Kc4 {[%clk
0:01:00.1]} 32... Nb6+ {[%clk 0:00:20.2]} 33. Kb4 {[%clk 0:00:59.3]} 33... Kd7
{[%clk 0:00:21.4]} 34. a4 {[%clk 0:00:59.9]} 34... Kc7 {[%clk 0:00:20.3]} 35.
Bf4+ {[%clk 0:00:57.7]} 35... Kd7 {[%clk 0:00:19.5]} 36. h4 {[%clk 0:00:54.6]}
36... Kc8 {[%clk 0:00:11.7]} 37. Bd6 {[%clk 0:00:52.4]} 37... Nd7 {[%clk
0:00:12.5]} 38. g5 {[%clk 0:00:50.6]} 38... hxg5 {[%clk 0:00:13]} 39. hxg5
{[%clk 0:00:52.5]} 39... g6 {[%clk 0:00:14.7]} 40. f4 {[%clk 0:00:51.5]} 40...
Kb7 {[%clk 0:00:15.5]} 41. Bc5 {[%clk 0:00:46]} 41... Ka6 {[%clk 0:00:16.3]} 42.
Kc4 {[%clk 0:00:42.9]} 42... Kb7 {[%clk 0:00:09.7]} 43. a5 {[%clk 0:00:32.8]}
43... Ka6 {[%clk 0:00:09.8]} 44. Bb4 {[%clk 0:00:34.1]} 44... Kb7 {[%clk
0:00:10.6]} 45. Bc3 {[%clk 0:00:35.1]} 45... Ka6 {[%clk 0:00:11.3]} 46. d5
{[%clk 0:00:35.6]} 46... cxd5+ {[%clk 0:00:11.6]} 47. exd5 {[%clk 0:00:36.9]}
47... Kb7 {[%clk 0:00:12.2]} 48. Be5 {[%clk 0:00:26.3]} 48... a6 {[%clk
0:00:13.2]} 49. Kd4 {[%clk 0:00:26.4]} 49... Kc8 {[%clk 0:00:13.5]} 50. Bd6
{[%clk 0:00:26.9]} 50... Kd8 {[%clk 0:00:13.9]} 51. Ke4 {[%clk 0:00:27.7]} 51...
Ke8 {[%clk 0:00:14.8]} 52. Kd4 {[%clk 0:00:26.1]} 52... Kd8 {[%clk 0:00:16]} 53.
Be5 {[%clk 0:00:14.5]} 53... Kc8 {[%clk 0:00:15.9]} 54. dxe6 {[%clk 0:00:09.9]}
54... fxe6 {[%clk 0:00:16.3]} 55. f5 {[%clk 0:00:11.3]} 55... exf5 {[%clk
0:00:16.9]} 56. Bd6 {[%clk 0:00:12.1]} 56... f4 {[%clk 0:00:03.1]} 57. Bxf4
{[%clk 0:00:12.6]} 57... Nf8 {[%clk 0:00:03.3]} 58. Ke5 {[%clk 0:00:14.1]} 58...
Kd7 {[%clk 0:00:04.7]} 59. Kf6 {[%clk 0:00:15.5]} 59... Ke8 {[%clk 0:00:06]} 60.
Be3 {[%clk 0:00:12.1]} 60... Nh7+ {[%clk 0:00:05.4]} 61. Kxg6 {[%clk 0:00:13.2]}
61... Nxg5 {[%clk 0:00:06.7]} 62. Kxg5 {[%clk 0:00:13.4]} 62... Kd7 {[%clk
0:00:08.4]} 63. Kf5 {[%clk 0:00:14.5]} 63... Kc8 {[%clk 0:00:09.7]} 64. Ke6
{[%clk 0:00:15.3]} 64... Kb7 {[%clk 0:00:11.3]} 65. Kd7 {[%clk 0:00:16.4]} 65...
Ka8 {[%clk 0:00:12.8]} 66. Kc6 {[%clk 0:00:16.6]} 66... Kb8 {[%clk 0:00:13.8]}
67. Bf4+ {[%clk 0:00:17.4]} 67... Ka8 {[%clk 0:00:14.7]} 68. Kc7 {[%clk
0:00:18.2]} 68... Ka7 {[%clk 0:00:15.8]} 69. Bd2 {[%clk 0:00:19.1]} 69... Ka8
{[%clk 0:00:16.9]} 70. Kb6 {[%clk 0:00:20.3]} 70... Kb8 {[%clk 0:00:17.8]} 71.
Be3 {[%clk 0:00:19.3]} 71... Ka8 {[%clk 0:00:19]} 72. Kxa6 {[%clk 0:00:05.3]}
72... Kb8 {[%clk 0:00:20.2]} 73. Bf4+ {[%clk 0:00:06.6]} 73... Ka8 {[%clk
0:00:21.4]} 74. Bg3 {[%clk 0:00:07.7]} 1/2-1/2

[Event "*** Titled Tuesday 3|2 Blitz"]
[Site "Chess.com"]
[Date "2016.07.05"]
[Round "1"]
[White "Sanan_Sjugirov"]
[Black "underdogchss"]
[Result "1-0"]
[WhiteElo "2659"]
[BlackElo "2342"]
[TimeControl "180+2"]
[EndTime "11:11:12 PDT"]
[Termination "Sanan_Sjugirov won by resignation"]

1. d4 {[%clk 0:03:01.9]} 1... Nf6 {[%clk 0:02:59]} 2. Nf3 {[%clk 0:03:03.2]}
2... e6 {[%clk 0:03:00]} 3. Bg5 {[%clk 0:03:04.2]} 3... h6 {[%clk 0:02:58.9]} 4.
Bh4 {[%clk 0:03:05.2]} 4... d6 {[%clk 0:02:59.6]} 5. Nbd2 {[%clk 0:03:05]} 5...
Nbd7 {[%clk 0:02:54.5]} 6. c3 {[%clk 0:03:05.2]} 6... g5 {[%clk 0:02:53.5]} 7.
Bg3 {[%clk 0:03:06.4]} 7... Nh5 {[%clk 0:02:53.3]} 8. e4 {[%clk 0:03:07.1]} 8...
Bg7 {[%clk 0:02:50]} 9. Bd3 {[%clk 0:03:07.2]} 9... Nxg3 {[%clk 0:02:37.6]} 10.
hxg3 {[%clk 0:03:08]} 10... b6 {[%clk 0:02:33.6]} 11. Qe2 {[%clk 0:03:06.5]}
11... Bb7 {[%clk 0:02:33.4]} 12. Ba6 {[%clk 0:03:06.3]} 12... Qc8 {[%clk
0:02:33.9]} 13. Bb5 {[%clk 0:03:02.2]} 13... c6 {[%clk 0:02:33.8]} 14. Bd3
{[%clk 0:03:03.1]} 14... Qc7 {[%clk 0:02:33.3]} 15. O-O-O {[%clk 0:03:02.3]}
15... O-O-O {[%clk 0:02:33.5]} 16. Nc4 {[%clk 0:02:59.8]} 16... b5 {[%clk
0:02:21.8]} 17. Ne3 {[%clk 0:03:00.3]} 17... Kb8 {[%clk 0:02:20.8]} 18. Kb1
{[%clk 0:03:01.1]} 18... a6 {[%clk 0:02:18.3]} 19. g4 {[%clk 0:03:00.6]} 19...
d5 {[%clk 0:02:14.1]} 20. Bc2 {[%clk 0:02:50.3]} 20... dxe4 {[%clk 0:01:54.1]}
21. Bxe4 {[%clk 0:02:51]} 21... c5 {[%clk 0:01:55.5]} 22. Bxb7 {[%clk 0:02:49]}
22... Qxb7 {[%clk 0:01:56.1]} 23. d5 {[%clk 0:02:45.8]} 23... Nb6 {[%clk
0:01:50.4]} 24. dxe6 {[%clk 0:02:44.6]} 24... Qe4+ {[%clk 0:01:39]} 25. Qc2
{[%clk 0:02:44.3]} 25... Qxc2+ {[%clk 0:01:39]} 26. Kxc2 {[%clk 0:02:45.2]}
26... fxe6 {[%clk 0:01:40.2]} 27. Rhe1 {[%clk 0:02:41.1]} 27... Kc7 {[%clk
0:01:39.1]} 28. Rxd8 {[%clk 0:02:37.1]} 28... Rxd8 {[%clk 0:01:38.9]} 29. Nf1
{[%clk 0:02:39]} 29... Rd6 {[%clk 0:01:28.8]} 30. Ng3 {[%clk 0:02:38]} 30... Kd7
{[%clk 0:01:23.9]} 31. Ne4 {[%clk 0:02:32.6]} 31... Rc6 {[%clk 0:01:24.9]} 32.
Rd1+ {[%clk 0:02:29.6]} 32... Ke7 {[%clk 0:01:25.8]} 33. b3 {[%clk 0:02:27.8]}
33... Nd5 {[%clk 0:01:24.5]} 34. a3 {[%clk 0:02:17.1]} 34... a5 {[%clk
0:01:23.1]} 35. c4 {[%clk 0:02:16.6]} 35... bxc4 {[%clk 0:01:21.3]} 36. bxc4
{[%clk 0:02:18.5]} 36... Nb6 {[%clk 0:01:22.1]} 37. Nfd2 {[%clk 0:02:17.7]}
37... Bd4 {[%clk 0:01:10.5]} 38. Rh1 {[%clk 0:02:13.6]} 38... e5 {[%clk
0:01:11.4]} 39. f3 {[%clk 0:02:09.6]} 39... Be3 {[%clk 0:01:07.2]} 40. Nf1
{[%clk 0:01:52]} 40... Bd4 {[%clk 0:01:06.5]} 41. Ned2 {[%clk 0:01:45.4]} 41...
e4 {[%clk 0:01:03.9]} 42. fxe4 {[%clk 0:01:41.8]} 42... Be5 {[%clk 0:01:04.8]}
43. Ne3 {[%clk 0:01:41.6]} 43... Kf8 {[%clk 0:00:56.2]} 44. Rf1+ {[%clk
0:01:40.5]} 44... Kg8 {[%clk 0:00:55.2]} 45. Nd5 {[%clk 0:01:41.5]} 45... Kg7
{[%clk 0:00:55.4]} 46. Rb1 {[%clk 0:01:40.1]} 46... Nxd5 {[%clk 0:00:51.7]} 47.
cxd5 {[%clk 0:01:42]} 47... Rf6 {[%clk 0:00:52.8]} 48. Nc4 {[%clk 0:01:41.4]}
48... Rf2+ {[%clk 0:00:53.7]} 49. Kd3 {[%clk 0:01:42]} 49... Bf4 {[%clk
0:00:48.9]} 50. Rb7+ {[%clk 0:01:34]} 50... Kf8 {[%clk 0:00:45.8]} 51. d6 {[%clk
0:01:33.7]} 51... Rf1 {[%clk 0:00:42.4]} 52. e5 {[%clk 0:01:24.9]} 52... Re1
{[%clk 0:00:41.3]} 53. Rb8+ {[%clk 0:00:52.1]} 53... Kf7 {[%clk 0:00:42.1]} 54.
Rb7+ {[%clk 0:00:52.1]} 54... Kf8 {[%clk 0:00:42.1]} 55. Kc2 {[%clk 0:00:47.3]}
55... Re4 {[%clk 0:00:37.6]} 56. Kb3 {[%clk 0:00:42.8]} 56... Rd4 {[%clk
0:00:38]} 57. Rb8+ {[%clk 0:00:37.7]} 57... Kf7 {[%clk 0:00:27.4]} 58. Rb7+
{[%clk 0:00:38.7]} 58... Kf8 {[%clk 0:00:28.2]} 59. Kc3 {[%clk 0:00:32.8]} 59...
Bg3 {[%clk 0:00:22.5]} 60. a4 {[%clk 0:00:25.3]} 60... Be1+ {[%clk 0:00:21.5]}
61. Kb3 {[%clk 0:00:26.7]} 61... Bg3 {[%clk 0:00:21.3]} 62. Re7 {[%clk
0:00:26.5]} 62... Rd3+ {[%clk 0:00:21.7]} 63. Kc2 {[%clk 0:00:27.5]} 63... Rd4
{[%clk 0:00:22.4]} 64. Nb6 {[%clk 0:00:28.9]} 64... Bxe5 {[%clk 0:00:21.7]} 65.
Nd7+ {[%clk 0:00:29]} 65... Kg8 {[%clk 0:00:22.7]} 66. Nxe5 {[%clk 0:00:30.4]}
66... Rxd6 {[%clk 0:00:23.6]} 67. Nf3 {[%clk 0:00:29.8]} 67... Rf6 {[%clk
0:00:23.8]} 68. Re4 {[%clk 0:00:30.3]} 68... Rb6 {[%clk 0:00:23.7]} 69. Rc4
{[%clk 0:00:30.9]} 69... Rc6 {[%clk 0:00:22.3]} 70. Ne5 {[%clk 0:00:31.9]} 70...
Rc7 {[%clk 0:00:22.8]} 71. Nd3 {[%clk 0:00:33.2]} 71... Kg7 {[%clk 0:00:20.9]}
72. Rxc5 {[%clk 0:00:34.2]} 72... Re7 {[%clk 0:00:21.4]} 73. Rxa5 {[%clk
0:00:34.7]} 1-0

[Event "*** Titled Tuesday 3|2 Blitz"]
[Site "Chess.com"]
[Date "2016.07.05"]
[Round "2"]
[White "Frolyanov_D"]
[Black "Christov91"]
[Result "1-0"]
[WhiteElo "2449"]
[BlackElo "2403"]
[TimeControl "180+2"]
[EndTime "11:15:17 PDT"]
[Termination "Frolyanov_D won by resignation"]

1. e4 {[%clk 0:03:01.9]} 1... e6 {[%clk 0:02:59.2]} 2. d4 {[%clk 0:02:57.5]}
2... d5 {[%clk 0:02:59.9]} 3. Nc3 {[%clk 0:02:59]} 3... Bb4 {[%clk 0:03:00.4]}
4. e5 {[%clk 0:03:00]} 4... c5 {[%clk 0:03:01.2]} 5. a3 {[%clk 0:03:01]} 5...
Bxc3+ {[%clk 0:03:02.1]} 6. bxc3 {[%clk 0:03:02.5]} 6... Ne7 {[%clk 0:03:04]} 7.
Qg4 {[%clk 0:03:02.7]} 7... Qc7 {[%clk 0:03:04.7]} 8. Qxg7 {[%clk 0:03:03.1]}
8... Rg8 {[%clk 0:03:05.3]} 9. Qxh7 {[%clk 0:03:03.9]} 9... cxd4 {[%clk
0:03:07.2]} 10. Ne2 {[%clk 0:03:02.2]} 10... Nbc6 {[%clk 0:03:08.3]} 11. f4
{[%clk 0:03:02.5]} 11... dxc3 {[%clk 0:03:09.1]} 12. h4 {[%clk 0:03:00.6]} 12...
Bd7 {[%clk 0:03:09.1]} 13. h5 {[%clk 0:03:00.8]} 13... O-O-O {[%clk 0:03:09.1]}
14. Qd3 {[%clk 0:03:00.7]} 14... d4 {[%clk 0:03:03.7]} 15. h6 {[%clk 0:02:59.4]}
15... Rg6 {[%clk 0:02:58.3]} 16. h7 {[%clk 0:02:52.1]} 16... Rh8 {[%clk
0:02:58.2]} 17. Nxd4 {[%clk 0:02:52.1]} 17... Nxd4 {[%clk 0:02:55.2]} 18. Qxd4
{[%clk 0:02:54]} 18... a6 {[%clk 0:02:51.3]} 19. Qf2 {[%clk 0:02:29.5]} 19...
Bc6 {[%clk 0:02:50]} 20. Be3 {[%clk 0:02:26]} 20... Nf5 {[%clk 0:02:49.8]} 21.
Bb6 {[%clk 0:02:23.3]} 21... Qd7 {[%clk 0:02:28.9]} 22. Rd1 {[%clk 0:02:21.8]}
22... Bd5 {[%clk 0:02:29.3]} 23. Qc5+ {[%clk 0:02:13.1]} 23... Qc6 {[%clk
0:02:29.4]} 24. Qxc6+ {[%clk 0:02:12.9]} 24... Bxc6 {[%clk 0:02:31.3]} 25. Rd8+
{[%clk 0:02:10.5]} 1-0

[Event "*** Titled Tuesday 3|2 Blitz"]
[Site "Chess.com"]
[Date "2016.07.05"]
[Round "2"]
[White "ftorodent"]
[Black "Keranke"]
[Result "1-0"]
[WhiteElo "2348"]
[BlackElo "2549"]
[TimeControl "180+2"]
[EndTime "11:15:27 PDT"]
[Termination "ftorodent won by resignation"]

1. d4 {[%clk 0:03:01.9]} 1... g6 {[%clk 0:02:56.5]} 2. c4 {[%clk 0:03:02.6]}
2... Bg7 {[%clk 0:02:58.2]} 3. e4 {[%clk 0:03:03.7]} 3... d6 {[%clk 0:02:59.8]}
4. Nc3 {[%clk 0:03:04.7]} 4... Nc6 {[%clk 0:03:00.5]} 5. Be3 {[%clk 0:03:05.7]}
5... e5 {[%clk 0:03:02]} 6. Nge2 {[%clk 0:03:06.4]} 6... Nh6 {[%clk 0:02:58.9]}
7. f3 {[%clk 0:03:05.1]} 7... O-O {[%clk 0:02:58.5]} 8. Qd2 {[%clk 0:03:01.9]}
8... f5 {[%clk 0:02:59.5]} 9. Bg5 {[%clk 0:03:01.5]} 9... exd4 {[%clk
0:02:54.6]} 10. Bxd8 {[%clk 0:02:57.5]} 10... dxc3 {[%clk 0:02:55.5]} 11. Nxc3
{[%clk 0:02:46]} 11... Rxd8 {[%clk 0:02:52.5]} 12. Bd3 {[%clk 0:02:44.4]} 12...
Ne5 {[%clk 0:02:48.3]} 13. O-O {[%clk 0:02:38.2]} 13... c6 {[%clk 0:02:46]} 14.
exf5 {[%clk 0:02:37.4]} 14... Nxf5 {[%clk 0:02:45.6]} 15. Rad1 {[%clk
0:02:28.1]} 15... Be6 {[%clk 0:02:45]} 16. b3 {[%clk 0:02:28.7]} 16... d5 {[%clk
0:02:16.4]} 17. cxd5 {[%clk 0:02:22.5]} 17... cxd5 {[%clk 0:02:18.3]} 18. Bxf5
{[%clk 0:02:20.8]} 18... gxf5 {[%clk 0:02:05.9]} 19. Nb5 {[%clk 0:02:20.6]}
19... Bf7 {[%clk 0:02:02.8]} 20. Nd4 {[%clk 0:02:14.8]} 20... Bg6 {[%clk
0:01:45.2]} 21. Ne6 {[%clk 0:02:14.6]} 21... Rd7 {[%clk 0:01:46.7]} 22. Nxg7
{[%clk 0:02:15.1]} 1-0

[Event "*** Titled Tuesday 3|2 Blitz"]
[Site "Chess.com"]
[Date "2016.07.05"]
[Round "2"]
[White "cabalista"]
[Black "AdamHunt1"]
[Result "0-1"]
[WhiteElo "2413"]
[BlackElo "2382"]
[TimeControl "180+2"]
[EndTime "11:15:37 PDT"]
[Termination "AdamHunt1 won by resignation"]

1. e4 {[%clk 0:03:01.9]} 1... c5 {[%clk 0:03:00.8]} 2. Nf3 {[%clk 0:03:02.2]}
2... e6 {[%clk 0:03:02.1]} 3. Nc3 {[%clk 0:03:02.6]} 3... a6 {[%clk 0:03:02.2]}
4. d4 {[%clk 0:03:03.2]} 4... cxd4 {[%clk 0:03:03.4]} 5. Nxd4 {[%clk 0:03:03.8]}
5... Qc7 {[%clk 0:03:02.7]} 6. Bd3 {[%clk 0:03:04.1]} 6... Nf6 {[%clk
0:03:02.7]} 7. Qe2 {[%clk 0:03:03.9]} 7... d6 {[%clk 0:03:02.8]} 8. f4 {[%clk
0:03:04.3]} 8... Be7 {[%clk 0:02:58.1]} 9. g4 {[%clk 0:03:04]} 9... Nc6 {[%clk
0:02:56.3]} 10. Nxc6 {[%clk 0:02:55.6]} 10... Qxc6 {[%clk 0:02:57.4]} 11. g5
{[%clk 0:02:55.7]} 11... Nd7 {[%clk 0:02:58.4]} 12. Bd2 {[%clk 0:02:45.6]} 12...
b5 {[%clk 0:02:58.1]} 13. O-O-O {[%clk 0:02:45.9]} 13... b4 {[%clk 0:02:53]} 14.
Nd5 {[%clk 0:02:46.3]} 14... exd5 {[%clk 0:02:51.8]} 15. exd5 {[%clk 0:02:46.8]}
15... Qxd5 {[%clk 0:02:53.1]} 16. Rhe1 {[%clk 0:02:31.9]} 16... Ne5 {[%clk
0:02:44.9]} 17. fxe5 {[%clk 0:02:30.3]} 17... Qxa2 {[%clk 0:02:43.4]} 18. Bxb4
{[%clk 0:02:22.5]} 18... Bxg5+ {[%clk 0:02:42]} 19. Qe3 {[%clk 0:02:03.8]} 19...
Bxe3+ {[%clk 0:02:42.1]} 20. Rxe3 {[%clk 0:02:03.7]} 20... O-O {[%clk
0:02:25.1]} 21. Bxd6 {[%clk 0:02:01.6]} 21... Re8 {[%clk 0:02:25.5]} 0-1

[Event "*** Titled Tuesday 3|2 Blitz"]
[Site "Chess.com"]
[Date "2016.07.05"]
[Round "2"]
[White "Alliswell998"]
[Black "GianmarcoVaR"]
[Result "0-1"]
[WhiteElo "2169"]
[BlackElo "2372"]
[TimeControl "180+2"]
[EndTime "11:16:30 PDT"]
[Termination "GianmarcoVaR won by resignation"]

1. e4 {[%clk 0:03:01.9]} 1... c6 {[%clk 0:02:40.1]} 2. d4 {[%clk 0:03:02.3]}
2... c5 {[%clk 0:02:42]} 3. Nf3 {[%clk 0:02:59.8]} 3... cxd4 {[%clk 0:02:42.6]}
4. Nxd4 {[%clk 0:03:00.4]} 4... d6 {[%clk 0:02:44.1]} 5. Nc3 {[%clk 0:02:59.4]}
5... e6 {[%clk 0:02:45.4]} 6. Be3 {[%clk 0:02:59.7]} 6... a6 {[%clk 0:02:46.6]}
7. Bc4 {[%clk 0:02:58.2]} 7... Ne7 {[%clk 0:02:48]} 8. Qe2 {[%clk 0:02:57.1]}
8... Nbc6 {[%clk 0:02:49.4]} 9. O-O-O {[%clk 0:02:56.6]} 9... Qc7 {[%clk
0:02:50.5]} 10. Bb3 {[%clk 0:02:57.1]} 10... Nxd4 {[%clk 0:02:50.7]} 11. Bxd4
{[%clk 0:02:57.5]} 11... Nc6 {[%clk 0:02:52.2]} 12. Be3 {[%clk 0:02:58.5]} 12...
b5 {[%clk 0:02:52.8]} 13. Rhe1 {[%clk 0:02:52.5]} 13... Be7 {[%clk 0:02:53.5]}
14. f4 {[%clk 0:02:52.6]} 14... O-O {[%clk 0:02:53.3]} 15. Qh5 {[%clk
0:02:48.2]} 15... b4 {[%clk 0:02:44.7]} 16. Ne2 {[%clk 0:02:45.3]} 16... a5
{[%clk 0:02:43.9]} 17. Kb1 {[%clk 0:02:40.3]} 17... a4 {[%clk 0:02:44.2]} 18.
Bc4 {[%clk 0:02:41]} 18... Ba6 {[%clk 0:02:21.5]} 19. Bd3 {[%clk 0:02:31.7]}
19... b3 {[%clk 0:02:21.3]} 20. cxb3 {[%clk 0:02:27]} 20... axb3 {[%clk
0:02:22.1]} 21. a3 {[%clk 0:02:27.9]} 21... Nb4 {[%clk 0:02:13.2]} 22. Bxa6
{[%clk 0:02:05]} 22... Qc2+ {[%clk 0:02:09.9]} 23. Ka1 {[%clk 0:02:05.8]} 23...
Rxa6 {[%clk 0:02:10.4]} 0-1

[Event "*** Titled Tuesday 3|2 Blitz"]
[Site "Chess.com"]
[Date "2016.07.05"]
[Round "2"]
[White "Lapitch"]
[Black "LazovT"]
[Result "0-1"]
[WhiteElo "2535"]
[BlackElo "2274"]
[TimeControl "180+2"]
[EndTime "11:17:08 PDT"]
[Termination "LazovT won by resignation"]

1. Nf3 {[%clk 0:02:36.3]} 1... Nf6 {[%clk 0:02:59.7]} 2. c4 {[%clk 0:02:38.2]}
2... g6 {[%clk 0:03:00.1]} 3. Nc3 {[%clk 0:02:40.1]} 3... Bg7 {[%clk 0:03:01.3]}
4. e4 {[%clk 0:02:41.7]} 4... d6 {[%clk 0:03:00.8]} 5. d4 {[%clk 0:02:43.1]}
5... O-O {[%clk 0:03:00.5]} 6. Be2 {[%clk 0:02:44.1]} 6... Na6 {[%clk 0:03:01]}
7. Bg5 {[%clk 0:02:43.7]} 7... h6 {[%clk 0:02:57.5]} 8. Bh4 {[%clk 0:02:44.3]}
8... g5 {[%clk 0:02:42.8]} 9. Bg3 {[%clk 0:02:45.1]} 9... Nh5 {[%clk 0:02:43.4]}
10. Qd2 {[%clk 0:02:43]} 10... c5 {[%clk 0:02:41.9]} 11. d5 {[%clk 0:02:42.9]}
11... f5 {[%clk 0:02:36]} 12. exf5 {[%clk 0:02:35.5]} 12... Bxf5 {[%clk
0:02:37.9]} 13. Bd3 {[%clk 0:02:28.1]} 13... Qd7 {[%clk 0:02:32.1]} 14. O-O-O
{[%clk 0:02:27.7]} 14... Rae8 {[%clk 0:02:21.1]} 15. Rde1 {[%clk 0:02:19.1]}
15... Nb4 {[%clk 0:02:14]} 16. Bxf5 {[%clk 0:02:17.1]} 16... Qxf5 {[%clk
0:02:15.9]} 17. Re3 {[%clk 0:02:17.7]} 17... Bd4 {[%clk 0:02:03.3]} 18. Nxd4
{[%clk 0:01:58]} 18... cxd4 {[%clk 0:02:03.1]} 19. Rf3 {[%clk 0:01:59.9]} 19...
Qg6 {[%clk 0:01:52.9]} 20. Ne2 {[%clk 0:01:36.4]} 20... Nxa2+ {[%clk 0:01:44]}
21. Kd1 {[%clk 0:01:37.5]} 21... Qb1+ {[%clk 0:01:44.4]} 22. Nc1 {[%clk
0:01:37.3]} 22... Rxf3 {[%clk 0:01:24.4]} 23. gxf3 {[%clk 0:01:38.1]} 23... Nxc1
{[%clk 0:01:19.3]} 24. Qxc1 {[%clk 0:01:40]} 24... Qd3+ {[%clk 0:01:11.8]} 25.
Qd2 {[%clk 0:01:37]} 25... Qxf3+ {[%clk 0:01:12]} 0-1

[Event "*** Titled Tuesday 3|2 Blitz"]
[Site "Chess.com"]
[Date "2016.07.05"]
[Round "2"]
[White "popov_m"]
[Black "saraswathii"]
[Result "1-0"]
[WhiteElo "2206"]
[BlackElo "1985"]
[TimeControl "180+2"]
[EndTime "11:17:28 PDT"]
[Termination "popov_m won by resignation"]

1. c4 {[%clk 0:03:01.9]} 1... Nc6 {[%clk 0:02:58.2]} 2. Nc3 {[%clk 0:02:58.7]}
2... e6 {[%clk 0:02:48.6]} 3. e4 {[%clk 0:02:52.6]} 3... Nf6 {[%clk 0:02:40.2]}
4. Nf3 {[%clk 0:02:44.4]} 4... d5 {[%clk 0:02:40.4]} 5. e5 {[%clk 0:02:44.4]}
5... Nd7 {[%clk 0:02:31.2]} 6. d4 {[%clk 0:02:45.3]} 6... Bb4 {[%clk 0:02:23.9]}
7. Bd2 {[%clk 0:02:45.3]} 7... O-O {[%clk 0:02:21.3]} 8. cxd5 {[%clk 0:02:40.9]}
8... exd5 {[%clk 0:02:08.7]} 9. Nxd5 {[%clk 0:02:36.1]} 9... Bxd2+ {[%clk
0:02:02.5]} 10. Qxd2 {[%clk 0:02:36.4]} 10... Re8 {[%clk 0:01:54]} 11. Bc4
{[%clk 0:02:33.3]} 11... Nb6 {[%clk 0:01:47.1]} 12. Nxb6 {[%clk 0:02:30]} 12...
axb6 {[%clk 0:01:44.2]} 13. O-O {[%clk 0:02:29.2]} 13... Bg4 {[%clk 0:01:42.5]}
14. Bxf7+ {[%clk 0:02:29]} 14... Kxf7 {[%clk 0:01:40.9]} 15. Qf4+ {[%clk
0:02:29.4]} 15... Kg8 {[%clk 0:01:36.3]} 16. Qxg4 {[%clk 0:02:30.8]} 16... Qd5
{[%clk 0:01:35.8]} 17. b3 {[%clk 0:02:22.2]} 17... Nb4 {[%clk 0:01:32.3]} 18. a3
{[%clk 0:01:09.2]} 18... Nc2 {[%clk 0:01:14.6]} 19. Rac1 {[%clk 0:01:09.3]}
19... Qxb3 {[%clk 0:01:13.5]} 20. Qe4 {[%clk 0:01:05.9]} 20... Nxa3 {[%clk
0:01:11.7]} 21. Ng5 {[%clk 0:00:57.9]} 1-0

[Event "*** Titled Tuesday 3|2 Blitz"]
[Site "Chess.com"]
[Date "2016.07.05"]
[Round "2"]
[White "Ksenia_Legenko"]
[Black "Saitama_Hero"]
[Result "0-1"]
[WhiteElo "2055"]
[BlackElo "2107"]
[TimeControl "180+2"]
[EndTime "11:17:33 PDT"]
[Termination "Saitama_Hero won by checkmate"]

1. d4 {[%clk 0:03:01.9]} 1... Nf6 {[%clk 0:03:00.2]} 2. c4 {[%clk 0:03:01.8]}
2... g6 {[%clk 0:03:01.7]} 3. Nc3 {[%clk 0:03:01.5]} 3... d5 {[%clk 0:03:03.2]}
4. Qa4+ {[%clk 0:03:01.6]} 4... Bd7 {[%clk 0:03:02]} 5. Qb3 {[%clk 0:03:02.6]}
5... dxc4 {[%clk 0:03:01.9]} 6. Qxc4 {[%clk 0:03:03.3]} 6... Bc6 {[%clk
0:03:02.9]} 7. Nf3 {[%clk 0:02:46.4]} 7... Bg7 {[%clk 0:03:03.3]} 8. Ne5 {[%clk
0:02:46.5]} 8... O-O {[%clk 0:03:02.9]} 9. Bf4 {[%clk 0:02:44.9]} 9... Nd5
{[%clk 0:03:00.5]} 10. Nxc6 {[%clk 0:02:40.1]} 10... bxc6 {[%clk 0:02:56.5]} 11.
Be5 {[%clk 0:02:32.3]} 11... Bxe5 {[%clk 0:02:34.3]} 12. dxe5 {[%clk 0:02:32.8]}
12... e6 {[%clk 0:02:28.5]} 13. h4 {[%clk 0:02:12.8]} 13... Nd7 {[%clk
0:02:28.3]} 14. e4 {[%clk 0:01:59.1]} 14... N5b6 {[%clk 0:01:59.1]} 15. Qxc6
{[%clk 0:01:42.9]} 15... Nxe5 {[%clk 0:02:00.6]} 16. Qb5 {[%clk 0:01:43.5]}
16... Qf6 {[%clk 0:02:00.2]} 17. h5 {[%clk 0:01:26.1]} 17... Rab8 {[%clk
0:01:59.4]} 18. Qa6 {[%clk 0:01:19.4]} 18... Nbd7 {[%clk 0:01:49]} 19. Rb1
{[%clk 0:01:12.8]} 19... Nc5 {[%clk 0:01:47.4]} 20. Qa3 {[%clk 0:00:41.8]} 20...
Ncd3+ {[%clk 0:01:45.8]} 21. Bxd3 {[%clk 0:00:39.4]} 21... Nxd3+ {[%clk
0:01:47.7]} 22. Ke2 {[%clk 0:00:40.2]} 22... Qxf2+ {[%clk 0:01:44.8]} 23. Kxd3
{[%clk 0:00:40.8]} 23... Rfd8+ {[%clk 0:01:46.4]} 24. Kc4 {[%clk 0:00:39.8]}
24... Qd4# {[%clk 0:01:45.5]} 0-1